bitfinex-derivatives/quotes_BTCF0:USTF0_20250811
["timestamp","ask_amount","ask_price","bid_price","bid_amount"]
[1754927318315,2.04728912,120400.0,120390.0,0.7049729]
[1754927318817,2.04728912,120400.0,120390.0,0.7069729]
[1754927319006,2.04728912,120400.0,120390.0,0.7099729]
[1754927319211,1.15831,120400.0,120390.0,0.7099729]
[1754927319506,1.94723,120400.0,120390.0,1.15472642]
[1754927319712,2.01456562,120400.0,120390.0,1.15472642]
[1754927319916,2.01456562,120400.0,120390.0,0.7099729]
[1754927320116,2.09763162,120400.0,120390.0,0.7099729]
[1754927322811,2.10246162,120400.0,120390.0,0.7099729]
[1754927325127,2.09739162,120400.0,120390.0,0.7099729]
[1754927325620,0.94823162,120400.0,120390.0,0.7099729]
[1754927325825,0.86512562,120400.0,120390.0,1.15472642]
[1754927326820,0.94819162,120400.0,120390.0,1.15472642]
[1754927327025,0.07648562,120400.0,120390.0,1.15472642]
[1754927327326,0.86512562,120400.0,120390.0,1.15472642]
[1754927327523,0.85597562,120400.0,120390.0,1.15472642]
[1754927327730,0.93904162,120400.0,120390.0,1.15472642]
[1754927327926,0.94819162,120400.0,120390.0,1.15472642]
[1754927328128,0.94819162,120400.0,120390.0,0.7099729]
[1754927328324,0.97056162,120400.0,120390.0,0.7099729]
[1754927330238,0.97048162,120400.0,120390.0,0.7099729]
[1754927332627,0.97531162,120400.0,120390.0,0.7099729]
[1754927332831,0.97531162,120400.0,120390.0,0.6479629]
[1754927333238,0.97531162,120400.0,120390.0,0.6762829]
[1754927333434,0.97531162,120400.0,120390.0,0.7099729]
[1754927333840,0.18192162,120400.0,120390.0,0.7099729]
[1754927334142,0.88729562,120400.0,120390.0,1.15472642]
[1754927334532,0.09885562,120400.0,120390.0,1.15472642]
[1754927334739,0.88725562,120400.0,120390.0,1.15472642]
[1754927335236,0.88725562,120400.0,120390.0,0.7099729]
[1754927335442,0.88725562,120400.0,120390.0,1.15472642]
[1754927335936,0.97032112,120400.0,120390.0,0.7099729]
[1754927337542,0.97511112,120400.0,120390.0,0.7099729]
[1754927339837,0.97507112,120400.0,120390.0,0.7099729]
[1754927340039,0.97024112,120400.0,120390.0,0.7099729]
[1754927340438,0.97024112,120400.0,120390.0,1.08946136]
[1754927341239,0.18192112,120400.0,120390.0,1.08946136]
[1754927341439,0.97020112,120400.0,120390.0,0.7099729]
[1754927342441,0.97439112,120400.0,120390.0,0.7099729]
[1754927343244,0.18611112,120400.0,120390.0,0.7099729]
[1754927343438,0.97435112,120400.0,120390.0,0.7099729]
[1754927343746,0.97016112,120400.0,120390.0,1.08946136]
[1754927345248,0.88709562,120400.0,120390.0,1.08946136]
[1754927345547,0.18192102,120400.0,120390.0,0.7099729]
[1754927345735,0.97012102,120400.0,120390.0,1.08946136]
[1754927346141,0.88705562,120400.0,120390.0,1.08946136]
[1754927346341,0.97012102,120400.0,120390.0,1.08946136]
[1754927346747,0.88705562,120400.0,120390.0,1.08946136]
[1754927347851,0.88705562,120400.0,120390.0,0.7099729]
[1754927348151,0.88705562,120400.0,120390.0,1.08946136]
[1754927348449,0.97012102,120400.0,120390.0,1.08946136]
[1754927349140,0.85553562,120400.0,120390.0,1.08946136]
[1754927349345,0.85549562,120400.0,120390.0,1.08946136]
[1754927349547,0.78816,120400.0,120390.0,1.08946136]
[1754927349951,0.0001,120410.0,120390.0,1.25560206]
[1754927350154,0.78822,120410.0,120400.0,0.92093376]
[1754927350353,0.78812,120410.0,120400.0,0.98306376]
[1754927351756,0.78812,120410.0,120400.0,1.08296376]
[1754927351955,0.78812,120410.0,120400.0,1.09096376]
[1754927352159,0.2584156,120420.0,120400.0,1.25708996]
[1754927352460,2.28808,120410.0,120400.0,0.8630868]
[1754927352659,2.28808,120410.0,120400.0,1.2298868]
[1754927352954,2.28808,120410.0,120400.0,1.3274668]
[1754927353151,2.35456616,120410.0,120400.0,1.3274668]
[1754927353356,1.65869456,120410.0,120400.0,1.3264668]
[1754927353556,2.44677456,120410.0,120400.0,1.3264668]
[1754927353852,1.65869456,120410.0,120400.0,1.70595526]
[1754927354058,2.44673456,120410.0,120400.0,1.69795526]
[1754927354255,2.44673456,120410.0,120400.0,1.70495526]
[1754927354960,2.44673456,120410.0,120400.0,1.70595526]
[1754927355348,1.65869456,120410.0,120400.0,1.70095526]
[1754927355549,2.44669456,120410.0,120400.0,1.70695526]
[1754927355749,2.44669456,120410.0,120400.0,1.2026468]
[1754927355750,2.03818302,120410.0,120400.0,1.2026468]
[1754927356063,2.04237302,120410.0,120400.0,0.114]
[1754927356361,2.40461874,120410.0,120400.0,0.10066]
[1754927356552,2.45461874,120410.0,120400.0,0.10066]
[1754927356854,3.24257874,120410.0,120400.0,0.10066]
[1754927357059,2.45461874,120410.0,120400.0,0.10066]
[1754927357257,3.24257874,120410.0,120400.0,0.10066]
[1754927357959,3.24253874,120410.0,120400.0,0.10066]
[1754927358257,2.45471874,120410.0,120400.0,0.10076]
[1754927358646,3.24263874,120410.0,120400.0,0.10076]
[1754927359052,3.40874274,120410.0,120400.0,0.10076]
[1754927360463,3.35874274,120410.0,120400.0,0.10076]
[1754927360758,3.40874274,120410.0,120400.0,0.10076]
[1754927360959,2.62082274,120410.0,120400.0,0.10076]
[1754927361154,3.0003112,120410.0,120400.0,0.10076]
[1754927361358,3.7882312,120410.0,120400.0,0.10076]
[1754927361754,3.7882312,120410.0,120400.0,0.09276]
[1754927361954,3.7881912,120410.0,120400.0,0.09976]
[1754927362456,3.7881912,120410.0,120400.0,0.09376]
[1754927362763,3.7881912,120410.0,120400.0,0.09876]
[1754927362962,3.40870274,120410.0,120400.0,0.09876]
[1754927363154,3.40870274,120410.0,120400.0,0.09376]
[1754927363360,3.40870274,120410.0,120400.0,0.09776]
[1754927363856,2.62082274,120410.0,120400.0,0.09676]
[1754927364058,2.57082274,120410.0,120400.0,0.09676]
[1754927364259,3.19259874,120410.0,120400.0,0.13155]
[1754927364856,2.02523028,120410.0,120400.0,0.13155]
[1754927365054,3.18840874,120410.0,120400.0,0.25637]
[1754927365368,3.18840874,120410.0,120400.0,0.2271]
[1754927365557,2.80892028,120410.0,120400.0,0.25637]
[1754927365763,3.18840874,120410.0,120400.0,0.25637]
[1754927366361,3.18840874,120410.0,120400.0,0.19358]
[1754927366767,3.18840874,120410.0,120400.0,0.17232]
[1754927367167,2.80892028,120410.0,120400.0,0.17232]
[1754927367368,2.40052874,120410.0,120400.0,0.17232]
[1754927367569,3.18836874,120410.0,120400.0,0.17232]
[1754927368169,3.18836874,120410.0,120400.0,0.09676]
[1754927368558,3.18836874,120410.0,120400.0,0.13045]
[1754927370361,2.40052874,120410.0,120400.0,0.13045]
[1754927370565,3.18832874,120410.0,120400.0,0.09676]
[1754927370870,3.18828874,120410.0,120400.0,0.09676]
[1754927372765,2.40052874,120410.0,120400.0,0.09676]
[1754927372967,2.7800172,120410.0,120400.0,0.09676]
[1754927373168,3.7338412,120410.0,120400.0,0.09676]
[1754927373764,3.8717412,120410.0,120400.0,0.09676]
[1754927374167,3.49225274,120410.0,120400.0,0.09676]
[1754927375374,3.32610874,120410.0,120400.0,0.13045]
[1754927376269,3.32610874,120410.0,120400.0,0.20903]
[1754927376476,3.32610874,120410.0,120400.0,0.14859]
[1754927376676,3.32610874,120410.0,120400.0,0.13045]
[1754927377871,2.40052874,120410.0,120400.0,0.23264]
[1754927378176,4.33680874,120410.0,120400.0,0.13045]
[1754927379069,3.54920874,120410.0,120400.0,0.09676]
[1754927379471,4.33676874,120410.0,120400.0,0.13045]
[1754927380272,3.54920874,120410.0,120400.0,0.13045]
[1754927380484,4.33672874,120410.0,120400.0,0.09676]
[1754927380670,3.9286972,120410.0,120400.0,0.09676]
[1754927380870,4.2327012,120410.0,120400.0,0.09676]
[1754927381070,5.0202212,120410.0,120400.0,0.09676]
[1754927384080,5.0201412,120410.0,120400.0,0.09676]
[1754927386076,5.0201812,120410.0,120400.0,0.09676]
[1754927387680,5.0201812,120410.0,120380.0,0.05224096]
[1754927387681,0.09996733,120390.0,120380.0,0.05224096]
[1754927387882,0.84025579,120390.0,120380.0,0.05224096]
[1754927388080,3.13709579,120390.0,120380.0,0.05224096]
[1754927388272,0.0830787,120380.0,120370.0,0.22698057]
[1754927388473,0.82336716,120380.0,120370.0,0.22698057]
[1754927388674,0.82336716,120380.0,120370.0,0.03369]
[1754927388874,0.82346716,120380.0,120370.0,0.03369]
[1754927389074,0.0830925,120360.0,120350.0,0.06044]
[1754927389275,0.46268096,120360.0,120350.0,0.12428]
[1754927389479,1.26787222,120360.0,120350.0,0.12428]
[1754927389679,0.88838376,120360.0,120350.0,0.09753]
[1754927389979,1.26787222,120360.0,120350.0,0.15797]
[1754927390582,0.88838376,120360.0,120350.0,0.15797]
[1754927390783,1.27087222,120360.0,120350.0,0.15797]
[1754927391381,0.49259222,120360.0,120350.0,0.15897]
[1754927391584,0.11310376,120360.0,120350.0,0.15897]
[1754927391781,1.27983222,120360.0,120350.0,0.15897]
[1754927392983,0.49259222,120360.0,120350.0,0.15897]
[1754927393173,0.90030376,120360.0,120350.0,0.15897]
[1754927393378,0.0121,120360.0,120350.0,0.97505786]
[1754927393577,0.18276071,120380.0,120360.0,0.0830897]
[1754927393876,0.18276071,120380.0,120370.0,0.87983406]
[1754927393877,0.09967581,120380.0,120370.0,0.87983406]
[1754927394180,0.1661484,120390.0,120380.0,0.2492278]
[1754927394381,0.1661484,120390.0,120380.0,0.84095846]
[1754927394382,0.9533484,120390.0,120380.0,0.84095846]
[1754927394584,0.9533484,120390.0,120380.0,0.46147]
[1754927394779,0.1783484,120390.0,120380.0,0.46147]
[1754927394978,0.57719686,120390.0,120380.0,0.46147]
[1754927395481,1.38263161,120390.0,120380.0,0.07034]
[1754927395680,0.86095721,120390.0,120380.0,0.07434]
[1754927395986,1.73123161,120390.0,120380.0,0.15687]
[1754927396185,1.73623161,120390.0,120380.0,0.15287]
[1754927396387,1.80167198,120390.0,120380.0,0.15287]
[1754927396785,1.80367198,120390.0,120380.0,0.15287]
[1754927397187,1.01647198,120390.0,120380.0,0.15287]
[1754927397387,1.80359198,120390.0,120380.0,0.15287]
[1754927397587,1.35866315,120390.0,120380.0,0.15287]
[1754927398390,0.57221315,120390.0,120380.0,0.15287]
[1754927398689,1.35933315,120390.0,120380.0,0.15287]
[1754927399393,1.82104607,120390.0,120380.0,0.09243]
[1754927399781,1.03392607,120390.0,120380.0,0.15441]
[1754927399985,1.82096607,120390.0,120380.0,0.15441]
[1754927400987,1.03392607,120390.0,120380.0,0.15441]
[1754927401200,1.82096607,120390.0,120380.0,0.15441]
[1754927401692,1.37603724,120390.0,120380.0,0.15441]
[1754927402394,1.82096607,120390.0,120380.0,0.15441]
[1754927402792,0.58899724,120390.0,120380.0,0.15441]
[1754927403095,1.37599724,120390.0,120380.0,0.15441]
[1754927403485,0.56896724,120390.0,120380.0,0.15441]
[1754927403685,1.3209084,120390.0,120380.0,0.68241763]
[1754927403991,0.876994,120390.0,120380.0,1.04321763]
[1754927404189,0.007,120390.0,120380.0,1.04321763]
[1754927404486,0.8769919,120390.0,120380.0,1.04321763]
[1754927405195,0.007,120390.0,120380.0,1.40815318]
[1754927405387,0.2493083,120400.0,120390.0,0.0830719]
[1754927405589,0.1661368,120400.0,120390.0,0.99220073]
[1754927405791,0.9530168,120400.0,120390.0,0.99220073]
[1754927406189,0.8699453,120400.0,120390.0,0.99220073]
[1754927406688,0.0830653,120400.0,120390.0,0.99220073]
[1754927406894,0.8699053,120400.0,120390.0,0.99420073]
[1754927407204,0.8699053,120400.0,120390.0,1.09410073]
[1754927407492,1.81721878,120410.0,120390.0,1.42636053]
[1754927407699,2.51954946,120410.0,120400.0,0.95077383]
[1754927407999,2.51944946,120410.0,120400.0,0.99219383]
[1754927408294,2.51944946,120410.0,120400.0,1.15829783]
[1754927408698,2.51944946,120410.0,120400.0,1.25819783]
[1754927409599,2.51944946,120410.0,120400.0,1.27919783]
[1754927410197,1.73260946,120410.0,120400.0,0.834269]
[1754927410493,1.74027946,120410.0,120400.0,0.307365]
[1754927410694,2.52703946,120410.0,120400.0,0.307365]
[1754927410894,1.74027946,120410.0,120400.0,0.2243]
[1754927411194,2.97188829,120410.0,120400.0,0.2243]
[1754927411400,2.97188829,120410.0,120400.0,0.19172]
[1754927411600,2.97188829,120410.0,120400.0,0.13909]
[1754927411789,2.18520829,120410.0,120400.0,0.13909]
[1754927411995,2.54745397,120410.0,120400.0,0.1209]
[1754927412302,3.33413397,120410.0,120400.0,0.1209]
[1754927412508,2.54745397,120410.0,120400.0,0.1209]
[1754927412694,3.33413397,120410.0,120400.0,0.1209]
[1754927412995,2.54745397,120410.0,120400.0,0.1209]
[1754927413502,3.33413397,120410.0,120400.0,0.11323]
[1754927414905,2.71355797,120410.0,120400.0,0.11323]
[1754927415099,2.76355797,120410.0,120400.0,0.11323]
[1754927415303,3.55019797,120410.0,120400.0,0.11323]
[1754927415498,2.76355797,120410.0,120400.0,0.11323]
[1754927415700,3.55019797,120410.0,120400.0,0.11323]
[1754927416002,2.76355797,120410.0,120400.0,0.11323]
[1754927416197,3.55019797,120410.0,120400.0,0.11323]
[1754927416404,3.33409397,120410.0,120400.0,0.11323]
[1754927416896,3.33409397,120410.0,120400.0,0.021]
[1754927417098,2.54745397,120410.0,120400.0,0.1133]
[1754927417405,3.33409397,120410.0,120400.0,0.1133]
[1754927417701,3.33409397,120410.0,120400.0,0.1063]
[1754927418102,2.54745397,120410.0,120400.0,0.1063]
[1754927418408,2.54745397,120410.0,120400.0,0.1073]
[1754927418704,2.54745397,120410.0,120400.0,0.1083]
[1754927418898,3.33409397,120410.0,120400.0,0.1083]
[1754927420105,3.33759397,120410.0,120400.0,0.1083]
[1754927420305,3.25470514,120410.0,120400.0,0.1083]
[1754927420508,4.48627397,120410.0,120400.0,0.1083]
[1754927421001,3.69963397,120410.0,120400.0,0.1083]
[1754927421306,4.48627397,120410.0,120400.0,0.1083]
[1754927421599,3.25470514,120410.0,120400.0,0.2117]
[1754927421792,3.25470514,120410.0,120400.0,0.1083]
[1754927421995,4.04134514,120410.0,120400.0,0.1083]
[1754927422407,4.04134514,120410.0,120400.0,0.17028]
[1754927422606,4.04134514,120410.0,120400.0,0.18847]
[1754927423000,3.25470514,120410.0,120400.0,0.18847]
[1754927423204,4.04134514,120410.0,120400.0,0.2117]
[1754927424407,2.80317304,120410.0,120400.0,0.2947649]
[1754927424800,3.58977304,120410.0,120400.0,0.6555649]
[1754927425303,3.58977304,120410.0,120400.0,0.2117]
[1754927426007,3.58977304,120410.0,120400.0,0.1194]
[1754927426308,3.58977304,120410.0,120400.0,0.2193]
[1754927426502,2.80317304,120410.0,120400.0,0.3023649]
[1754927426707,2.80316984,120410.0,120400.0,0.3023649]
[1754927426908,3.58972984,120410.0,120400.0,0.3023649]
[1754927427107,3.58972984,120410.0,120400.0,0.2193]
[1754927427302,2.80316984,120410.0,120400.0,0.2193]
[1754927427503,3.58972984,120410.0,120400.0,0.2193]
[1754927427810,3.58972984,120410.0,120400.0,0.3023649]
[1754927428014,3.58972984,120410.0,120400.0,0.6631649]
[1754927429104,2.80316984,120410.0,120400.0,0.6631649]
[1754927429706,3.58972984,120410.0,120400.0,0.6631649]
[1754927431008,2.80316984,120410.0,120400.0,0.6631649]
[1754927431210,3.58968984,120410.0,120400.0,0.6631649]
[1754927431611,3.50663184,120410.0,120400.0,0.6631649]
[1754927431808,1.57143184,120410.0,120400.0,1.25689328]
[1754927432008,2.35795184,120410.0,120400.0,1.25689328]
[1754927432211,1.56998616,120410.0,120400.0,1.42299728]
[1754927432405,2.35646616,120410.0,120400.0,1.42299728]
[1754927432911,1.56998616,120410.0,120400.0,1.42299728]
[1754927433607,1.5035,120410.0,120400.0,1.42399728]
[1754927433904,0.0676768,120420.0,120400.0,2.08505171]
[1754927434106,0.8541568,120420.0,120410.0,0.507878]
[1754927434309,0.1506279,120420.0,120410.0,0.71419411]
[1754927434612,0.1368711,120420.0,120410.0,0.88029011]
[1754927434908,0.9279511,120420.0,120410.0,0.69807755]
[1754927435209,0.1368711,120420.0,120410.0,0.562978]
[1754927435405,0.1368711,120420.0,120410.0,0.597578]
[1754927435607,0.9296311,120420.0,120410.0,0.649178]
[1754927435809,0.9297911,120420.0,120410.0,0.649178]
[1754927436308,0.1368711,120420.0,120410.0,0.288378]
[1754927436613,0.58324549,120420.0,120410.0,0.1]
[1754927436813,0.94404549,120420.0,120410.0,0.06567]
[1754927437109,1.95426149,120420.0,120410.0,0.06567]
[1754927437318,1.22716025,120420.0,120410.0,0.06567]
[1754927437504,2.02156025,120420.0,120410.0,0.06567]
[1754927438309,0.0830787,120380.0,120370.0,0.29590255]
[1754927438501,1.2384387,120380.0,120370.0,0.112503]
[1754927438707,0.8776387,120380.0,120370.0,0.083083]
[1754927438901,0.79456,120380.0,120370.0,0.188403]
[1754927439109,0.8776387,120380.0,120370.0,0.188403]
[1754927440018,0.79456,120380.0,120370.0,0.190403]
[1754927440210,0.8776387,120380.0,120370.0,0.190403]
[1754927441006,0.88880753,120380.0,120370.0,0.002]
[1754927441210,1.68488753,120380.0,120370.0,0.002]
[1754927441708,0.90471648,120380.0,120370.0,0.002]
[1754927441907,1.70091648,120380.0,120370.0,0.002]
[1754927442814,0.90471648,120380.0,120370.0,0.002]
[1754927443114,1.70091648,120380.0,120370.0,0.002]
[1754927445108,0.90471648,120380.0,120370.0,0.002]
[1754927445308,1.70075648,120380.0,120370.0,0.002]
[1754927445712,0.90471648,120380.0,120370.0,0.002]
[1754927445916,1.70035648,120380.0,120370.0,0.002]
[1754927447611,0.90471648,120380.0,120370.0,0.002]
[1754927447916,1.86758049,120380.0,120370.0,0.002]
[1754927448116,1.86754049,120380.0,120370.0,0.002]
[1754927448317,1.07086049,120380.0,120370.0,0.002]
[1754927448516,1.86766049,120380.0,120370.0,0.002]
[1754927449216,1.86766049,120380.0,120370.0,1e-07]
[1754927449409,1.07086049,120380.0,120370.0,1e-07]
[1754927449614,1.86818049,120380.0,120370.0,1e-07]
[1754927450310,1.07086049,120380.0,120370.0,1e-07]
[1754927450511,1.86818049,120380.0,120370.0,1e-07]
[1754927451312,1.07086049,120380.0,120370.0,1e-07]
[1754927451508,1.86814049,120380.0,120370.0,1e-07]
[1754927451912,1.07086049,120380.0,120370.0,1e-07]
[1754927452114,1.86806049,120380.0,120370.0,1e-07]
[1754927452506,1.90216049,120380.0,120370.0,1e-07]
[1754927453515,0.0830926,120360.0,120350.0,0.03409]
[1754927453709,1.32664143,120360.0,120350.0,0.03409]
[1754927453916,1.32759143,120360.0,120350.0,0.03409]
[1754927454117,2.04919143,120360.0,120350.0,0.03409]
[1754927454316,3.19815143,120360.0,120350.0,0.03409]
[1754927454613,2.7532226,120360.0,120350.0,0.03409]
[1754927454818,3.19815143,120360.0,120350.0,0.03409]
[1754927455216,3.2152098,120360.0,120350.0,0.03409]
[1754927455412,0.1662246,120340.0,120330.0,0.06402]
[1754927455612,0.9648046,120340.0,120330.0,0.5094533]
[1754927455913,0.8801723,120340.0,120330.0,0.5435433]
[1754927456118,0.79786,120340.0,120330.0,1.05249213]
[1754927456316,0.79838,120340.0,120330.0,1.05249213]
[1754927456913,0.0001,120340.0,120330.0,1.10249213]
[1754927457109,0.7794465,120340.0,120330.0,0.8237856]
[1754927457313,0.7794465,120340.0,120330.0,1.26871443]
[1754927457914,0.69634,120340.0,120330.0,1.26871443]
[1754927458413,0.0831065,120340.0,120330.0,1.18560113]
[1754927458719,0.0831262,120320.0,120310.0,0.06356]
[1754927458911,0.0831262,120320.0,120290.0,0.6102193]
[1754927458912,0.0831341,120300.0,120290.0,0.5075011]
[1754927459216,0.9760941,120300.0,120290.0,0.5728011]
[1754927459424,0.9131941,120300.0,120290.0,0.5728011]
[1754927459621,0.8822941,120300.0,120290.0,0.5728011]
[1754927460105,0.8822541,120300.0,120290.0,0.5728011]
[1754927460310,0.0831341,120300.0,120290.0,0.5728011]
[1754927460504,0.8821341,120300.0,120290.0,0.5728011]
[1754927460710,0.8821341,120300.0,120290.0,0.6084211]
[1754927461323,0.1146741,120300.0,120290.0,0.6084211]
[1754927461517,0.9135141,120300.0,120290.0,0.6084211]
[1754927462817,0.1146741,120300.0,120290.0,0.6084211]
[1754927463118,0.8819341,120300.0,120290.0,1.05334993]
[1754927463314,0.79904,120300.0,120290.0,1.51902483]
[1754927463707,0.1663605,120310.0,120300.0,0.0831342]
[1754927463911,0.8829689,120310.0,120300.0,1.05234303]
[1754927465017,0.0851289,120310.0,120300.0,1.21859103]
[1754927465408,0.002,120310.0,120300.0,1.21859103]
[1754927465609,0.7999,120320.0,120300.0,1.38485513]
[1754927465815,0.7999,120320.0,120310.0,1.00526613]
[1754927466120,0.8829203,120320.0,120310.0,1.00526613]
[1754927466317,0.8829203,120320.0,120310.0,1.17149813]
[1754927466722,0.8839203,120320.0,120310.0,1.17149813]
[1754927466922,0.8839203,120320.0,120310.0,0.7265693]
[1754927467124,0.8849203,120320.0,120310.0,0.7736393]
[1754927467623,0.8849203,120320.0,120310.0,0.6074073]
[1754927468628,0.8849203,120320.0,120310.0,1.05233613]
[1754927469423,0.8849203,120320.0,120310.0,0.6074073]
[1754927470418,0.9164603,120320.0,120310.0,0.6074073]
[1754927471224,0.1517503,120320.0,120310.0,0.6074073]
[1754927471420,0.2096303,120320.0,120310.0,0.2466073]
[1754927471625,1.49056913,120320.0,120310.0,0.2466073]
[1754927472021,1.0456403,120320.0,120310.0,0.6074073]
[1754927474025,0.2447203,120320.0,120310.0,0.6074073]
[1754927474226,1.0455203,120320.0,120310.0,0.6074073]
[1754927475027,0.2447203,120320.0,120310.0,0.6074073]
[1754927475227,1.48996913,120320.0,120310.0,0.4621572]
[1754927475427,0.68964913,120320.0,120310.0,0.4621572]
[1754927475622,1.0446803,120320.0,120310.0,0.4621572]
[1754927476521,1.0446803,120320.0,120310.0,0.5304472]
[1754927477422,0.0831272,120310.0,120300.0,0.4439305]
[1754927477631,1.0426872,120310.0,120300.0,0.5270645]
[1754927477822,1.0430472,120310.0,120300.0,0.6905445]
[1754927479124,0.9298272,120310.0,120300.0,0.6905445]
[1754927479331,1.0242672,120310.0,120300.0,0.6905445]
[1754927479522,1.0430472,120310.0,120300.0,0.6381645]
[1754927479825,0.9078772,120310.0,120300.0,0.6905445]
[1754927480028,0.9964572,120310.0,120300.0,0.6905445]
[1754927480230,1.0430472,120310.0,120300.0,0.6905445]
[1754927482325,0.260785,120320.0,120300.0,1.21860543]
[1754927482527,0.0001,120320.0,120310.0,0.98703593]
[1754927482833,1.0418402,120320.0,120310.0,0.7736568]
[1754927483130,0.06516,120320.0,120310.0,0.7736568]
[1754927483324,0.33275737,120330.0,120320.0,0.0831202]
[1754927483523,1.2078741,120330.0,120320.0,0.16348]
[1754927483726,1.5831202,120320.0,120310.0,0.7083568]
[1754927483926,1.6785602,120320.0,120310.0,0.7736568]
[1754927485125,2.4771202,120320.0,120310.0,0.7736568]
[1754927485330,2.3826802,120320.0,120310.0,0.7736568]
[1754927485530,2.4771202,120320.0,120310.0,0.7736568]
[1754927485727,2.4761202,120320.0,120310.0,0.7736568]
[1754927485924,2.4761202,120320.0,120310.0,0.7736995]
[1754927487132,1.6785602,120320.0,120310.0,0.7736995]
[1754927487327,2.4767602,120320.0,120310.0,0.7736995]
[1754927487526,2.4767602,120320.0,120310.0,0.7754995]
[1754927488034,1.6785602,120320.0,120310.0,0.5261227]
[1754927488233,2.4760002,120320.0,120310.0,0.6092498]
[1754927488832,1.6785602,120320.0,120310.0,0.6092498]
[1754927489028,2.4757202,120320.0,120310.0,0.6092498]
[1754927489428,1.6785602,120320.0,120310.0,0.6092498]
[1754927489628,2.4756802,120320.0,120310.0,0.6092498]
[1754927490131,1.6785602,120320.0,120310.0,0.6092498]
[1754927490329,2.4756802,120320.0,120310.0,0.6092498]
[1754927490528,2.4756802,120320.0,120310.0,0.6073898]
[1754927490736,2.4755602,120320.0,120310.0,0.6073898]
[1754927491331,2.4484002,120320.0,120310.0,0.6073898]
[1754927491529,2.4769902,120320.0,120310.0,0.6073898]
[1754927492233,1.6799902,120320.0,120310.0,0.6073898]
[1754927492533,2.4768302,120320.0,120310.0,0.6073898]
[1754927492732,2.4774702,120320.0,120310.0,0.6073898]
[1754927493332,2.92239903,120320.0,120310.0,0.4457698]
[1754927493533,3.28319903,120320.0,120310.0,0.0018427]
[1754927493737,1.78319903,120320.0,120310.0,0.0018427]
[1754927495638,1.42239903,120320.0,120310.0,0.0018427]
[1754927495937,1.78319903,120320.0,120310.0,0.0018427]
[1754927496236,0.9773102,120320.0,120310.0,0.1030598]
[1754927496432,0.9786802,120320.0,120310.0,1.05231863]
[1754927496643,1.0432902,120320.0,120310.0,0.6073898]
[1754927497034,0.2455302,120320.0,120310.0,0.6073898]
[1754927497236,0.69045903,120320.0,120310.0,0.0849698]
[1754927497449,1.0431302,120320.0,120310.0,0.0849698]
[1754927498135,1.48805903,120320.0,120310.0,0.0849698]
[1754927498539,1.0431302,120320.0,120310.0,0.0849698]
[1754927499140,1.0431302,120320.0,120310.0,0.1207698]
[1754927499836,0.2455302,120320.0,120310.0,0.4815698]
[1754927500138,0.2455302,120320.0,120310.0,0.1548898]
[1754927500341,1.0436502,120320.0,120310.0,0.1548898]
[1754927500531,1.0436502,120320.0,120310.0,0.1207698]
[1754927500835,0.2455302,120320.0,120310.0,0.0018427]
[1754927501142,0.3325602,120300.0,120290.0,0.0831406]
[1754927501336,0.0831409,120290.0,120280.0,0.87790253]
[1754927501638,1.0450109,120290.0,120280.0,1.00372253]
[1754927501825,1.0450109,120290.0,120280.0,0.95319788]
[1754927503030,1.0450109,120290.0,120280.0,0.95519788]
[1754927504330,1.0452909,120290.0,120280.0,0.95519788]
[1754927505542,1.0452909,120290.0,120280.0,1.149298]
[1754927505736,1.0452909,120290.0,120280.0,1.052368]
[1754927505935,1.0452909,120290.0,120280.0,1.122288]
[1754927506136,1.0452909,120290.0,120280.0,1.149298]
[1754927506739,1.0452909,120290.0,120280.0,0.95519788]
[1754927508141,1.0443309,120290.0,120280.0,0.95519788]
[1754927508342,1.0442509,120290.0,120280.0,0.95519788]
[1754927508536,0.1486811,120290.0,120280.0,1.40012671]
[1754927508737,0.1663784,120300.0,120290.0,0.0831411]
[1754927509046,1.12674599,120300.0,120290.0,0.6055611]
[1754927509244,0.32894599,120300.0,120290.0,0.6055611]
[1754927509545,1.12714599,120300.0,120290.0,0.6055611]
[1754927510343,1.12714599,120300.0,120290.0,0.75581249]
[1754927511942,1.12714599,120300.0,120290.0,0.6065611]
[1754927512246,1.12714599,120300.0,120290.0,1.13589691]
[1754927513044,1.04400609,120300.0,120290.0,1.08527031]
[1754927513444,1.04400609,120300.0,120290.0,1.06214031]
[1754927513744,1.04400609,120300.0,120290.0,0.6820311]
[1754927514040,0.0991,120300.0,120290.0,1.08527031]
[1754927514246,0.79708,120300.0,120290.0,1.33468901]
[1754927515749,1.0014141,120300.0,120290.0,1.33468901]
[1754927516136,1.0014141,120300.0,120290.0,0.9545798]
[1754927516335,0.64392819,120310.0,120290.0,0.7929598]
[1754927516535,0.68089419,120310.0,120300.0,0.0831341]
[1754927516742,1.51172419,120310.0,120300.0,0.1189341]
[1754927517242,0.0831341,120300.0,120290.0,0.8287598]
[1754927517544,1.29379331,120300.0,120290.0,0.8287598]
[1754927517746,1.29379331,120300.0,120290.0,0.8277598]
[1754927517942,1.29379331,120300.0,120290.0,0.9034398]
[1754927518141,0.9136841,120300.0,120290.0,0.9535798]
[1754927518344,0.9140041,120300.0,120290.0,0.9535798]
[1754927518547,0.9453341,120300.0,120290.0,0.9545798]
[1754927520240,0.9453341,120300.0,120290.0,0.9535798]
[1754927520750,0.001,120300.0,120290.0,1.10280094]
[1754927520946,0.7977,120310.0,120300.0,0.0831341]
[1754927521144,0.8221,120310.0,120300.0,0.6106841]
[1754927521344,0.53657641,120310.0,120300.0,0.1887041]
[1754927521545,0.1619072,120310.0,120300.0,0.39910524]
[1754927521746,0.9597472,120310.0,120300.0,0.39910524]
[1754927522339,0.9597472,120310.0,120300.0,0.6106841]
[1754927522641,0.62483909,120320.0,120310.0,0.0831272]
[1754927522838,0.62473909,120320.0,120310.0,0.1209572]
[1754927523039,0.0831272,120310.0,120300.0,0.6480284]
[1754927523249,1.32667722,120310.0,120300.0,0.6480284]
[1754927523450,1.68747722,120310.0,120300.0,0.1209622]
[1754927523651,1.68747722,120310.0,120300.0,0.03783]
[1754927523845,0.88935722,120310.0,120300.0,0.03783]
[1754927524045,0.89035722,120310.0,120300.0,0.14922114]
[1754927524245,1.68855722,120310.0,120300.0,0.14922114]
[1754927524553,0.89035722,120310.0,120300.0,0.14922114]
[1754927524750,1.68755722,120310.0,120300.0,0.23235524]
[1754927524952,1.68955722,120310.0,120300.0,0.23235524]
[1754927525148,0.89135722,120310.0,120300.0,0.27018524]
[1754927525355,1.68951722,120310.0,120300.0,0.27018524]
[1754927525650,1.68951722,120310.0,120300.0,0.14922114]
[1754927525955,1.68951722,120310.0,120300.0,0.18705114]
[1754927526150,1.68951722,120310.0,120300.0,0.27018524]
[1754927527250,1.68951722,120310.0,120300.0,0.28695114]
[1754927527460,1.68951722,120310.0,120300.0,0.37008524]
[1754927527756,1.2440872,120310.0,120300.0,0.37008524]